[Event "Titled Tuesday Blitz August 22 Late 2023"]
[White "Ibadov, Dashgyn"]
[Black "Itkis, Boris"]
[WhiteFideId "24107514"]
[BlackFideId "1209167"]
[WhiteElo "2600"]
[BlackElo "2493"]
[Result "1-0"]
[Round "10"]
[TimeControl "180+1"]
[Date "2023.08.22"]
[WhiteClock "0:00:05"]
[BlackClock "0:00:08"]
[Board "49"]

1. e4 {[%clk 0:03:00]}  e6 {[%clk 0:02:59]} 2. d4 {[%clk 0:03:00]}  d5 {[%clk 0:03:00]} 3. Nc3 {[%clk 0:03:01]}  Bb4 {[%clk 0:03:00]} 4. e5 {[%clk 0:03:01]}  c5 {[%clk 0:03:01]} 5. a3 {[%clk 0:03:01]}  Bxc3+ {[%clk 0:03:01]} 6. bxc3 {[%clk 0:03:02]}  Ne7 {[%clk 0:03:01]} 7. h4 {[%clk 0:02:59]}  Nbc6 {[%clk 0:03:00]} 8. h5 {[%clk 0:02:59]}  h6 {[%clk 0:03:00]} 9. Qg4 {[%clk 0:02:58]}  Rg8 {[%clk 0:02:59]} 10. Bd3 {[%clk 0:02:53]}  Nf5 {[%clk 0:02:42]} 11. Nf3 {[%clk 0:02:49]}  c4 {[%clk 0:02:39]} 12. Bxf5 {[%clk 0:02:47]}  exf5 {[%clk 0:02:39]} 13. Qg3 {[%clk 0:02:40]}  Qa5 {[%clk 0:02:38]} 14. O-O {[%clk 0:02:25]}  Qxc3 {[%clk 0:02:25]} 15. Bd2 {[%clk 0:02:25]}  Qxc2 {[%clk 0:02:25]} 16. Bxh6 {[%clk 0:02:26]}  Be6 {[%clk 0:02:25]} 17. Bxg7 {[%clk 0:02:19]}  f4 {[%clk 0:02:15]} 18. Qg5 {[%clk 0:02:18]}  Qf5 {[%clk 0:02:14]} 19. h6 {[%clk 0:02:16]}  Ne7 {[%clk 0:02:03]} 20. Qxf5 {[%clk 0:01:25]}  Bxf5 {[%clk 0:02:00]} 21. g4 {[%clk 0:01:15]}  Bd3 {[%clk 0:01:42]} 22. Rfe1 {[%clk 0:01:05]}  Kd7 {[%clk 0:01:41]} 23. e6+ {[%clk 0:00:59]}  fxe6 {[%clk 0:01:37]} 24. Ne5+ {[%clk 0:01:00]}  Kd6 {[%clk 0:01:33]} 25. Nxd3 {[%clk 0:00:59]}  cxd3 {[%clk 0:01:33]} 26. Rad1 {[%clk 0:00:58]}  Ng6 {[%clk 0:01:22]} 27. Rxd3 {[%clk 0:00:55]}  Rac8 {[%clk 0:01:13]} 28. Kg2 {[%clk 0:00:34]}  Rc7 {[%clk 0:01:06]} 29. Kf3 {[%clk 0:00:32]}  b6 {[%clk 0:01:03]} 30. g5 {[%clk 0:00:21]}  Rcc8 {[%clk 0:00:24]} 31. Be5+ {[%clk 0:00:18]}  Kd7 {[%clk 0:00:22]} 32. Kg4 {[%clk 0:00:10]}  Rcf8 {[%clk 0:00:21]} 33. h7 {[%clk 0:00:06]}  Nxe5+ {[%clk 0:00:21]} 34. dxe5 {[%clk 0:00:06]}  Rg7 {[%clk 0:00:21]} 35. Rh1 {[%clk 0:00:05]}  Rh8 {[%clk 0:00:21]} 36. Rdh3 {[%clk 0:00:05]}  Ke7 {[%clk 0:00:20]} 37. Rh6 {[%clk 0:00:05]}  b5 {[%clk 0:00:18]} 38. g6 {[%clk 0:00:04]}  a5 {[%clk 0:00:18]} 39. Kg5 {[%clk 0:00:04]}  b4 {[%clk 0:00:18]} 40. axb4 {[%clk 0:00:04]}  axb4 {[%clk 0:00:19]} 41. Rb1 {[%clk 0:00:04]}  Rf8 {[%clk 0:00:08]} 42. h8=Q {[%clk 0:00:05]} 1-0


[Site "https://www.chess.com"]

[Event "Titled Tuesday Blitz August 22 Late 2023"]
[White "Cheng, Xiao"]
[Black "Kozusek, Daniel"]
[WhiteFideId "2022915"]
[BlackFideId "349500"]
[WhiteElo "2489"]
[BlackElo "2595"]
[Result "0-1"]
[Round "10"]
[TimeControl "180+1"]
[Date "2023.08.22"]
[WhiteClock "0:00:57"]
[BlackClock "0:00:13"]
[Board "50"]

1. e4 {[%clk 0:02:54]}  c5 {[%clk 0:02:58]} 2. Nf3 {[%clk 0:02:54]}  e6 {[%clk 0:02:58]} 3. d4 {[%clk 0:02:54]}  cxd4 {[%clk 0:02:59]} 4. Nxd4 {[%clk 0:02:54]}  Nf6 {[%clk 0:03:00]} 5. Nc3 {[%clk 0:02:54]}  Nc6 {[%clk 0:03:00]} 6. a3 {[%clk 0:02:54]}  Be7 {[%clk 0:02:59]} 7. Be3 {[%clk 0:02:51]}  d5 {[%clk 0:02:56]} 8. exd5 {[%clk 0:02:49]}  Nxd5 {[%clk 0:02:56]} 9. Nxd5 {[%clk 0:02:50]}  Qxd5 {[%clk 0:02:56]} 10. Qd2 {[%clk 0:02:51]}  Nxd4 {[%clk 0:02:43]} 11. Bxd4 {[%clk 0:02:48]}  e5 {[%clk 0:02:34]} 12. Be3 {[%clk 0:02:45]}  Qxd2+ {[%clk 0:02:34]} 13. Bxd2 {[%clk 0:02:46]}  Bd7 {[%clk 0:02:32]} 14. O-O-O {[%clk 0:02:45]}  Bc6 {[%clk 0:02:25]} 15. f3 {[%clk 0:02:41]}  O-O-O {[%clk 0:02:16]} 16. Bc4 {[%clk 0:02:40]}  f6 {[%clk 0:02:15]} 17. Bb4 {[%clk 0:02:35]}  Bxb4 {[%clk 0:02:06]} 18. axb4 {[%clk 0:02:36]}  a6 {[%clk 0:02:05]} 19. b3 {[%clk 0:02:33]}  g5 {[%clk 0:02:04]} 20. Kb2 {[%clk 0:02:32]}  Kc7 {[%clk 0:02:04]} 21. Be6 {[%clk 0:02:28]}  h5 {[%clk 0:01:57]} 22. h4 {[%clk 0:02:20]}  Rxd1 {[%clk 0:01:38]} 23. Rxd1 {[%clk 0:02:18]}  gxh4 {[%clk 0:01:22]} 24. Bh3 {[%clk 0:02:11]}  Rd8 {[%clk 0:01:16]} 25. Re1 {[%clk 0:02:08]}  Rd2 {[%clk 0:01:07]} 26. Kc3 {[%clk 0:02:07]}  Rf2 {[%clk 0:01:07]} 27. Re3 {[%clk 0:02:07]}  Bd7 {[%clk 0:01:05]} 28. Kd3 {[%clk 0:01:55]}  Bxh3 {[%clk 0:00:55]} 29. gxh3 {[%clk 0:01:56]}  Rh2 {[%clk 0:00:56]} 30. f4 {[%clk 0:01:56]}  exf4 {[%clk 0:00:54]} 31. Rf3 {[%clk 0:01:56]}  Kd6 {[%clk 0:00:47]} 32. Ke4 {[%clk 0:01:53]}  Rxc2 {[%clk 0:00:40]} 33. Kxf4 {[%clk 0:01:52]}  Rg2 {[%clk 0:00:26]} 34. Kf5 {[%clk 0:01:49]}  Rg3 {[%clk 0:00:25]} 35. Rf4 {[%clk 0:01:47]}  Rxh3 {[%clk 0:00:26]} 36. Kxf6 {[%clk 0:01:42]}  Rxb3 {[%clk 0:00:26]} 37. Rxh4 {[%clk 0:01:42]}  Kc6 {[%clk 0:00:25]} 38. Ke5 {[%clk 0:01:40]}  Kb5 {[%clk 0:00:24]} 39. Rxh5 {[%clk 0:01:38]}  Rxb4 {[%clk 0:00:21]} 40. Kd5 {[%clk 0:01:35]}  Rb1 {[%clk 0:00:20]} 41. Rh2 {[%clk 0:01:31]}  a5 {[%clk 0:00:18]} 42. Kd4 {[%clk 0:01:30]}  Kb4 {[%clk 0:00:18]} 43. Kd3 {[%clk 0:01:29]}  b5 {[%clk 0:00:16]} 44. Kc2 {[%clk 0:01:28]}  Rg1 {[%clk 0:00:13]} 45. Rh4+ {[%clk 0:01:23]}  Ka3 {[%clk 0:00:13]} 46. Rh3+ {[%clk 0:01:23]}  Ka4 {[%clk 0:00:14]} 47. Kb2 {[%clk 0:01:18]}  b4 {[%clk 0:00:14]} 48. Rd3 {[%clk 0:01:13]}  Rg2+ {[%clk 0:00:13]} 49. Kb1 {[%clk 0:01:13]}  b3 {[%clk 0:00:13]} 50. Rd5 {[%clk 0:01:05]}  Kb4 {[%clk 0:00:13]} 51. Rh5 {[%clk 0:01:03]}  a4 {[%clk 0:00:13]} 52. Rh8 {[%clk 0:00:58]}  Rg1+ {[%clk 0:00:12]} 53. Kb2 {[%clk 0:00:57]}  a3# {[%clk 0:00:13]} 0-1


[Site "https://www.chess.com"]

[Event "Titled Tuesday Blitz August 22 Late 2023"]
[White "Kirillov, Dmitry"]
[Black "Willy, Stephen"]
[WhiteFideId "34180572"]
[BlackFideId "30981468"]
[WhiteElo "2482"]
[BlackElo "2586"]
[Result "0-1"]
[Round "10"]
[TimeControl "180+1"]
[Date "2023.08.22"]
[WhiteClock "0:01:40"]
[BlackClock "0:00:07"]
[Board "51"]

1. d4 {[%clk 0:03:00]}  d5 {[%clk 0:02:58]} 2. Nf3 {[%clk 0:03:00]}  Nf6 {[%clk 0:02:57]} 3. Bg5 {[%clk 0:02:59]}  Ne4 {[%clk 0:02:57]} 4. Bf4 {[%clk 0:02:57]}  Bf5 {[%clk 0:02:55]} 5. e3 {[%clk 0:02:57]}  e6 {[%clk 0:02:53]} 6. Bd3 {[%clk 0:02:58]}  Bd6 {[%clk 0:02:52]} 7. Nbd2 {[%clk 0:02:58]}  Nd7 {[%clk 0:02:43]} 8. O-O {[%clk 0:02:55]}  h5 {[%clk 0:02:32]} 9. Qe2 {[%clk 0:02:46]}  a6 {[%clk 0:02:20]} 10. Be5 {[%clk 0:02:46]}  f6 {[%clk 0:01:58]} 11. Bxd6 {[%clk 0:02:44]}  cxd6 {[%clk 0:01:57]} 12. Nh4 {[%clk 0:02:45]}  g5 {[%clk 0:01:51]} 13. Nxf5 {[%clk 0:02:44]}  exf5 {[%clk 0:01:52]} 14. f3 {[%clk 0:02:43]}  Qe7 {[%clk 0:01:36]} 15. Nb3 {[%clk 0:02:31]}  h4 {[%clk 0:01:27]} 16. c3 {[%clk 0:02:30]}  Ng3 {[%clk 0:01:20]} 17. hxg3 {[%clk 0:02:25]}  hxg3 {[%clk 0:01:18]} 18. Bxf5 {[%clk 0:02:25]}  Rh2 {[%clk 0:01:10]} 19. Bh3 {[%clk 0:02:25]}  O-O-O {[%clk 0:01:07]} 20. Nd2 {[%clk 0:02:23]}  Rh8 {[%clk 0:01:06]} 21. Rfe1 {[%clk 0:02:22]}  R8xh3 {[%clk 0:01:05]} 22. gxh3 {[%clk 0:02:21]}  Rxe2 {[%clk 0:01:04]} 23. Rxe2 {[%clk 0:02:22]}  f5 {[%clk 0:00:56]} 24. Rae1 {[%clk 0:02:21]}  Nf6 {[%clk 0:00:49]} 25. Nf1 {[%clk 0:02:19]}  Qh7 {[%clk 0:00:44]} 26. Kg2 {[%clk 0:02:19]}  f4 {[%clk 0:00:41]} 27. exf4 {[%clk 0:02:19]}  gxf4 {[%clk 0:00:42]} 28. Re6 {[%clk 0:02:17]}  Qf5 {[%clk 0:00:32]} 29. R1e2 {[%clk 0:02:14]}  Kd7 {[%clk 0:00:27]} 30. Re7+ {[%clk 0:02:12]}  Kc6 {[%clk 0:00:27]} 31. Rf7 {[%clk 0:02:11]}  Qg6 {[%clk 0:00:14]} 32. Rfe7 {[%clk 0:02:11]}  Qd3 {[%clk 0:00:13]} 33. a4 {[%clk 0:02:07]}  a5 {[%clk 0:00:12]} 34. Rd2 {[%clk 0:02:02]}  Qb1 {[%clk 0:00:10]} 35. Rde2 {[%clk 0:02:00]}  Qd1 {[%clk 0:00:08]} 36. R7e6 {[%clk 0:01:56]}  Ne4 {[%clk 0:00:09]} 37. R6xe4 {[%clk 0:01:43]}  dxe4 {[%clk 0:00:09]} 38. Rxe4 {[%clk 0:01:44]}  Qc2+ {[%clk 0:00:09]} 39. Kh1 {[%clk 0:01:40]}  Qf2 {[%clk 0:00:07]} 0-1


[Site "https://www.chess.com"]

[Event "Titled Tuesday Blitz August 22 Late 2023"]
[White "Arencibia Monduy, Antonio"]
[Black "Auger_Pi"]
[WhiteFideId "3507939"]
[WhiteElo "2479"]
[BlackElo "2580"]
[Result "1-0"]
[Round "10"]
[TimeControl "180+1"]
[Date "2023.08.22"]
[WhiteClock "0:00:52"]
[BlackClock "0:00:57"]
[Board "52"]

1. e4 {[%clk 0:03:00]}  c5 {[%clk 0:02:56]} 2. Nf3 {[%clk 0:03:00]}  d6 {[%clk 0:02:57]} 3. c3 {[%clk 0:02:59]}  Nc6 {[%clk 0:02:53]} 4. Be2 {[%clk 0:02:55]}  g6 {[%clk 0:02:50]} 5. d4 {[%clk 0:02:55]}  cxd4 {[%clk 0:02:50]} 6. cxd4 {[%clk 0:02:55]}  e6 {[%clk 0:02:50]} 7. Nc3 {[%clk 0:02:55]}  Bg7 {[%clk 0:02:50]} 8. O-O {[%clk 0:02:55]}  Nge7 {[%clk 0:02:49]} 9. Be3 {[%clk 0:02:55]}  d5 {[%clk 0:02:49]} 10. e5 {[%clk 0:02:55]}  Nf5 {[%clk 0:02:49]} 11. Bg5 {[%clk 0:02:46]}  f6 {[%clk 0:02:48]} 12. exf6 {[%clk 0:02:46]}  Bxf6 {[%clk 0:02:49]} 13. Bxf6 {[%clk 0:02:47]}  Qxf6 {[%clk 0:02:50]} 14. Bb5 {[%clk 0:02:40]}  O-O {[%clk 0:02:50]} 15. Bxc6 {[%clk 0:02:41]}  bxc6 {[%clk 0:02:50]} 16. Re1 {[%clk 0:02:41]}  Nh4 {[%clk 0:02:40]} 17. Re3 {[%clk 0:02:41]}  Bd7 {[%clk 0:02:36]} 18. Qd2 {[%clk 0:02:36]}  Nf5 {[%clk 0:02:31]} 19. Ree1 {[%clk 0:02:32]}  Rad8 {[%clk 0:02:25]} 20. Na4 {[%clk 0:02:28]}  Nd6 {[%clk 0:02:17]} 21. Nc5 {[%clk 0:02:28]}  Nc4 {[%clk 0:02:16]} 22. Qe2 {[%clk 0:02:27]}  Bc8 {[%clk 0:02:15]} 23. b3 {[%clk 0:02:27]}  Nd6 {[%clk 0:02:12]} 24. Ne5 {[%clk 0:02:21]}  Qf4 {[%clk 0:01:59]} 25. Nxc6 {[%clk 0:02:11]}  Rde8 {[%clk 0:02:00]} 26. Rad1 {[%clk 0:02:06]}  Nf5 {[%clk 0:01:58]} 27. Qd2 {[%clk 0:01:27]}  Qg4 {[%clk 0:01:30]} 28. h3 {[%clk 0:01:27]}  Qh4 {[%clk 0:01:26]} 29. Nxa7 {[%clk 0:01:19]}  Nd6 {[%clk 0:01:22]} 30. Nxc8 {[%clk 0:01:18]}  Rxc8 {[%clk 0:01:21]} 31. Rxe6 {[%clk 0:01:16]}  Rxc5 {[%clk 0:01:21]} 32. dxc5 {[%clk 0:01:09]}  Ne4 {[%clk 0:01:21]} 33. Qxd5 {[%clk 0:00:57]}  Qxf2+ {[%clk 0:01:19]} 34. Kh1 {[%clk 0:00:54]}  Ng3+ {[%clk 0:01:01]} 35. Kh2 {[%clk 0:00:54]}  Rf7 {[%clk 0:01:01]} 36. Re8+ {[%clk 0:00:51]}  Kg7 {[%clk 0:00:57]} 37. Qe5+ {[%clk 0:00:52]} 1-0


[Site "https://www.chess.com"]

[Event "Titled Tuesday Blitz August 22 Late 2023"]
[White "Hajiyev, Kanan"]
[Black "Principe, Gerson"]
[WhiteFideId "13404148"]
[BlackFideId "3804550"]
[WhiteElo "2472"]
[BlackElo "2580"]
[Result "0-1"]
[Round "10"]
[TimeControl "180+1"]
[Date "2023.08.22"]
[WhiteClock "0:00:08"]
[BlackClock "0:00:13"]
[Board "53"]

1. d4 {[%clk 0:03:00]}  Nf6 {[%clk 0:02:59]} 2. Nf3 {[%clk 0:03:01]}  e6 {[%clk 0:02:59]} 3. c4 {[%clk 0:03:01]}  b6 {[%clk 0:02:58]} 4. g3 {[%clk 0:02:59]}  Bb7 {[%clk 0:02:58]} 5. Bg2 {[%clk 0:02:58]}  Be7 {[%clk 0:02:56]} 6. O-O {[%clk 0:02:58]}  O-O {[%clk 0:02:56]} 7. Nc3 {[%clk 0:02:59]}  Ne4 {[%clk 0:02:56]} 8. Bd2 {[%clk 0:02:59]}  f5 {[%clk 0:02:56]} 9. Be1 {[%clk 0:03:00]}  Bf6 {[%clk 0:02:55]} 10. Rc1 {[%clk 0:03:00]}  a5 {[%clk 0:02:55]} 11. d5 {[%clk 0:02:51]}  Na6 {[%clk 0:02:52]} 12. Nd4 {[%clk 0:02:39]}  Nac5 {[%clk 0:02:43]} 13. Nxe4 {[%clk 0:02:19]}  fxe4 {[%clk 0:02:33]} 14. dxe6 {[%clk 0:02:07]}  dxe6 {[%clk 0:02:28]} 15. Bc3 {[%clk 0:02:06]}  Qe7 {[%clk 0:02:21]} 16. Qc2 {[%clk 0:02:04]}  Rad8 {[%clk 0:02:21]} 17. Rcd1 {[%clk 0:02:02]}  Qf7 {[%clk 0:02:04]} 18. b3 {[%clk 0:01:57]}  Qg6 {[%clk 0:02:00]} 19. Nb5 {[%clk 0:01:54]}  Qf7 {[%clk 0:01:54]} 20. Bd4 {[%clk 0:01:43]}  Bxd4 {[%clk 0:01:50]} 21. Rxd4 {[%clk 0:01:38]}  Rxd4 {[%clk 0:01:45]} 22. Nxd4 {[%clk 0:01:37]}  Rd8 {[%clk 0:01:13]} 23. Nb5 {[%clk 0:01:34]}  Qd7 {[%clk 0:01:09]} 24. Nc3 {[%clk 0:01:23]}  Qd2 {[%clk 0:01:07]} 25. Rc1 {[%clk 0:01:23]}  Qxc2 {[%clk 0:01:04]} 26. Rxc2 {[%clk 0:01:24]}  Kf7 {[%clk 0:01:00]} 27. Kf1 {[%clk 0:01:22]}  Kf6 {[%clk 0:00:59]} 28. e3 {[%clk 0:01:11]}  Ke5 {[%clk 0:00:58]} 29. Ke2 {[%clk 0:01:02]}  Bc6 {[%clk 0:00:46]} 30. Rd2 {[%clk 0:00:56]}  Nd3 {[%clk 0:00:42]} 31. Nxe4 {[%clk 0:00:20]}  Bxe4 {[%clk 0:00:24]} 32. f4+ {[%clk 0:00:15]}  Kf5 {[%clk 0:00:16]} 33. g4+ {[%clk 0:00:13]}  Kxg4 {[%clk 0:00:15]} 34. Bxe4 {[%clk 0:00:13]}  Nc1+ {[%clk 0:00:14]} 35. Kd1 {[%clk 0:00:13]}  Rxd2+ {[%clk 0:00:14]} 36. Kxd2 {[%clk 0:00:14]}  Nxa2 {[%clk 0:00:14]} 37. Bxh7 {[%clk 0:00:13]}  Nb4 {[%clk 0:00:10]} 38. Bg8 {[%clk 0:00:13]}  Kf5 {[%clk 0:00:09]} 39. Bh7+ {[%clk 0:00:11]}  Kf6 {[%clk 0:00:09]} 40. e4 {[%clk 0:00:11]}  e5 {[%clk 0:00:09]} 41. Ke3 {[%clk 0:00:08]}  Nc6 {[%clk 0:00:09]} 42. Bg8 {[%clk 0:00:06]}  Nd4 {[%clk 0:00:09]} 43. fxe5+ {[%clk 0:00:04]}  Kxe5 {[%clk 0:00:09]} 44. Bd5 {[%clk 0:00:04]}  Nxb3 {[%clk 0:00:08]} 45. Kd3 {[%clk 0:00:03]}  Nd4 {[%clk 0:00:07]} 46. Kc3 {[%clk 0:00:04]}  c6 {[%clk 0:00:07]} 47. Bg8 {[%clk 0:00:04]}  Kxe4 {[%clk 0:00:06]} 48. c5 {[%clk 0:00:04]}  b5 {[%clk 0:00:06]} 49. Bf7 {[%clk 0:00:04]}  Ke5 {[%clk 0:00:06]} 50. Be8 {[%clk 0:00:04]}  Kd5 {[%clk 0:00:06]} 51. Bf7+ {[%clk 0:00:04]}  Kxc5 {[%clk 0:00:07]} 52. Kd3 {[%clk 0:00:05]}  a4 {[%clk 0:00:07]} 53. h4 {[%clk 0:00:05]}  a3 {[%clk 0:00:07]} 54. Ke4 {[%clk 0:00:06]}  b4 {[%clk 0:00:07]} 55. Kf4 {[%clk 0:00:06]}  b3 {[%clk 0:00:08]} 56. Kg5 {[%clk 0:00:06]}  a2 {[%clk 0:00:08]} 57. Kg6 {[%clk 0:00:06]}  a1=Q {[%clk 0:00:09]} 58. Kxg7 {[%clk 0:00:07]}  Qg1+ {[%clk 0:00:09]} 59. Bg6 {[%clk 0:00:06]}  Qh2 {[%clk 0:00:10]} 60. h5 {[%clk 0:00:07]}  Ne6+ {[%clk 0:00:10]} 61. Kf6 {[%clk 0:00:07]}  Nf4 {[%clk 0:00:11]} 62. Bf7 {[%clk 0:00:06]}  Nxh5+ {[%clk 0:00:11]} 63. Kg5 {[%clk 0:00:06]}  Ng3 {[%clk 0:00:11]} 64. Bg6 {[%clk 0:00:06]}  Qd2+ {[%clk 0:00:11]} 65. Kf6 {[%clk 0:00:07]}  Ne2 {[%clk 0:00:12]} 66. Bf5 {[%clk 0:00:07]}  Nd4 {[%clk 0:00:12]} 67. Bg6 {[%clk 0:00:07]}  Qf4+ {[%clk 0:00:13]} 68. Kg7 {[%clk 0:00:08]}  Qe5+ {[%clk 0:00:13]} 69. Kh6 {[%clk 0:00:08]}  b2 {[%clk 0:00:13]} 70. Kh7 {[%clk 0:00:08]}  Ne6 {[%clk 0:00:13]} 71. Bf7 {[%clk 0:00:08]}  Qg7# {[%clk 0:00:13]} 0-1


[Site "https://www.chess.com"]

[Event "Titled Tuesday Blitz August 22 Late 2023"]
[White "Rosen, Eric"]
[Black "Pein, Jonathan"]
[WhiteFideId "2032562"]
[BlackFideId "417092"]
[WhiteElo "2577"]
[BlackElo "2466"]
[Result "1-0"]
[Round "10"]
[TimeControl "180+1"]
[Date "2023.08.22"]
[WhiteClock "0:00:08"]
[BlackClock "0:00:01"]
[Board "55"]

1. d4 {[%clk 0:03:00]}  d6 {[%clk 0:02:57]} 2. e4 {[%clk 0:03:01]}  Nf6 {[%clk 0:02:58]} 3. Nc3 {[%clk 0:03:01]}  e5 {[%clk 0:02:58]} 4. Nf3 {[%clk 0:03:01]}  exd4 {[%clk 0:02:59]} 5. Nxd4 {[%clk 0:03:02]}  g6 {[%clk 0:02:59]} 6. Bf4 {[%clk 0:02:54]}  Bg7 {[%clk 0:02:59]} 7. Qd2 {[%clk 0:02:54]}  Nc6 {[%clk 0:02:56]} 8. Bb5 {[%clk 0:02:48]}  Bd7 {[%clk 0:02:53]} 9. O-O-O {[%clk 0:02:46]}  O-O {[%clk 0:02:43]} 10. Nde2 {[%clk 0:02:31]}  Re8 {[%clk 0:02:40]} 11. f3 {[%clk 0:02:31]}  a6 {[%clk 0:02:24]} 12. Bc4 {[%clk 0:02:29]}  b5 {[%clk 0:02:24]} 13. Bb3 {[%clk 0:02:28]}  Na5 {[%clk 0:02:14]} 14. Bh6 {[%clk 0:01:50]}  Bh8 {[%clk 0:02:09]} 15. h4 {[%clk 0:01:50]}  Nc4 {[%clk 0:02:05]} 16. Bxc4 {[%clk 0:01:40]}  bxc4 {[%clk 0:02:06]} 17. h5 {[%clk 0:01:40]}  Qb8 {[%clk 0:02:04]} 18. hxg6 {[%clk 0:01:36]}  fxg6 {[%clk 0:02:05]} 19. Bg5 {[%clk 0:01:31]}  Qb6 {[%clk 0:01:54]} 20. Qd4 {[%clk 0:01:01]}  Qxd4 {[%clk 0:01:22]} 21. Nxd4 {[%clk 0:01:02]}  Rab8 {[%clk 0:01:07]} 22. Rh4 {[%clk 0:00:48]}  Re5 {[%clk 0:00:45]} 23. f4 {[%clk 0:00:35]}  Ree8 {[%clk 0:00:40]} 24. f5 {[%clk 0:00:32]}  Bg7 {[%clk 0:00:17]} 25. Rdh1 {[%clk 0:00:29]}  c5 {[%clk 0:00:07]} 26. Nf3 {[%clk 0:00:17]}  gxf5 {[%clk 0:00:06]} 27. Bxf6 {[%clk 0:00:17]}  Bxf6 {[%clk 0:00:07]} 28. Rxh7 {[%clk 0:00:18]}  Bg7 {[%clk 0:00:06]} 29. Ng5 {[%clk 0:00:10]}  fxe4 {[%clk 0:00:05]} 30. Ngxe4 {[%clk 0:00:10]}  Bf5 {[%clk 0:00:05]} 31. Rxg7+ {[%clk 0:00:03]}  Kxg7 {[%clk 0:00:05]} 32. Nxd6 {[%clk 0:00:04]}  Kg6 {[%clk 0:00:05]} 33. Nxe8 {[%clk 0:00:04]}  Rxe8 {[%clk 0:00:06]} 34. Rd1 {[%clk 0:00:03]}  Rh8 {[%clk 0:00:05]} 35. a3 {[%clk 0:00:03]}  Rh2 {[%clk 0:00:05]} 36. Rd2 {[%clk 0:00:03]}  Rh1+ {[%clk 0:00:05]} 37. Rd1 {[%clk 0:00:03]}  Rh2 {[%clk 0:00:06]} 38. Rg1 {[%clk 0:00:04]}  Kf6 {[%clk 0:00:05]} 39. Kd2 {[%clk 0:00:05]}  Ke5 {[%clk 0:00:05]} 40. Ke3 {[%clk 0:00:05]}  Bxc2 {[%clk 0:00:02]} 41. Ne2 {[%clk 0:00:06]}  Bd3 {[%clk 0:00:02]} 42. Nf4 {[%clk 0:00:06]}  Rh4 {[%clk 0:00:02]} 43. Nxd3+ {[%clk 0:00:06]}  cxd3 {[%clk 0:00:01]} 44. Kxd3 {[%clk 0:00:06]}  Rg4 {[%clk 0:00:01]} 45. Kc3 {[%clk 0:00:06]}  Kd5 {[%clk 0:00:02]} 46. Rd1+ {[%clk 0:00:06]}  Kc6 {[%clk 0:00:02]} 47. Rg1 {[%clk 0:00:03]}  Kd5 {[%clk 0:00:02]} 48. g3 {[%clk 0:00:03]}  c4 {[%clk 0:00:02]} 49. Rd1+ {[%clk 0:00:03]}  Kc5 {[%clk 0:00:03]} 50. Rg1 {[%clk 0:00:04]}  a5 {[%clk 0:00:02]} 51. Rg2 {[%clk 0:00:04]}  a4 {[%clk 0:00:03]} 52. Rg1 {[%clk 0:00:05]}  Rd4 {[%clk 0:00:03]} 53. g4 {[%clk 0:00:04]}  Rd3+ {[%clk 0:00:04]} 54. Kc2 {[%clk 0:00:05]}  Rd6 {[%clk 0:00:05]} 55. g5 {[%clk 0:00:05]}  Rg6 {[%clk 0:00:05]} 56. Kc3 {[%clk 0:00:05]}  Kb5 {[%clk 0:00:06]} 57. Rg4 {[%clk 0:00:06]}  Rg7 {[%clk 0:00:05]} 58. g6 {[%clk 0:00:06]}  Rg8 {[%clk 0:00:04]} 59. g7 {[%clk 0:00:06]}  Kc5 {[%clk 0:00:03]} 60. Rg5+ {[%clk 0:00:07]}  Kd6 {[%clk 0:00:04]} 61. Kxc4 {[%clk 0:00:07]}  Ke6 {[%clk 0:00:03]} 62. Kb4 {[%clk 0:00:07]}  Kf6 {[%clk 0:00:04]} 63. Rg2 {[%clk 0:00:08]}  Ra8 {[%clk 0:00:04]} 64. g8=Q {[%clk 0:00:08]}  Ra5 {[%clk 0:00:04]} 65. Qf8+ {[%clk 0:00:07]}  Ke5 {[%clk 0:00:04]} 66. Re2+ {[%clk 0:00:08]}  Kd4 {[%clk 0:00:04]} 67. Qd8+ {[%clk 0:00:08]}  Rd5 {[%clk 0:00:01]} 68. Qh4+ {[%clk 0:00:08]}  Kd3 {[%clk 0:00:01]} 69. Qe4# {[%clk 0:00:08]} 1-0


[Site "https://www.chess.com"]

[Event "Titled Tuesday Blitz August 22 Late 2023"]
[White "The_Straightforward_Rook"]
[Black "Przybylski, Wojciech"]
[BlackFideId "1117599"]
[WhiteElo "2466"]
[BlackElo "2573"]
[Result "0-1"]
[Round "10"]
[TimeControl "180+1"]
[Date "2023.08.22"]
[WhiteClock "0:00:21"]
[BlackClock "0:00:11"]
[Board "56"]

1. e4 {[%clk 0:02:58]}  c5 {[%clk 0:02:59]} 2. Nf3 {[%clk 0:02:58]}  d6 {[%clk 0:02:58]} 3. c3 {[%clk 0:02:55]}  f5 {[%clk 0:02:56]} 4. exf5 {[%clk 0:02:50]}  Bxf5 {[%clk 0:02:55]} 5. d4 {[%clk 0:02:51]}  cxd4 {[%clk 0:02:50]} 6. Bd3 {[%clk 0:02:49]}  Bxd3 {[%clk 0:02:40]} 7. Qxd3 {[%clk 0:02:50]}  Nf6 {[%clk 0:02:38]} 8. O-O {[%clk 0:02:49]}  e5 {[%clk 0:02:35]} 9. cxd4 {[%clk 0:02:45]}  e4 {[%clk 0:02:35]} 10. Qe2 {[%clk 0:02:46]}  d5 {[%clk 0:02:33]} 11. Ne5 {[%clk 0:02:46]}  Nc6 {[%clk 0:02:27]} 12. Nxc6 {[%clk 0:02:34]}  bxc6 {[%clk 0:02:26]} 13. f3 {[%clk 0:02:31]}  Be7 {[%clk 0:02:20]} 14. fxe4 {[%clk 0:02:31]}  dxe4 {[%clk 0:02:20]} 15. Rxf6 {[%clk 0:02:18]}  Bxf6 {[%clk 0:02:16]} 16. Qxe4+ {[%clk 0:02:18]}  Kf8 {[%clk 0:02:14]} 17. Be3 {[%clk 0:02:12]}  Qd5 {[%clk 0:02:13]} 18. Nc3 {[%clk 0:02:01]}  Qxe4 {[%clk 0:02:07]} 19. Nxe4 {[%clk 0:02:02]}  Re8 {[%clk 0:02:06]} 20. Nxf6 {[%clk 0:02:00]}  Rxe3 {[%clk 0:01:58]} 21. Nd7+ {[%clk 0:01:59]}  Ke7 {[%clk 0:01:58]} 22. Ne5 {[%clk 0:01:59]}  c5 {[%clk 0:01:48]} 23. Rc1 {[%clk 0:01:45]}  Rf8 {[%clk 0:01:33]} 24. Nf3 {[%clk 0:01:23]}  cxd4 {[%clk 0:01:23]} 25. Rc7+ {[%clk 0:01:21]}  Kd6 {[%clk 0:01:17]} 26. Rxa7 {[%clk 0:01:13]}  d3 {[%clk 0:01:16]} 27. Ra3 {[%clk 0:00:58]}  g5 {[%clk 0:00:59]} 28. Kf2 {[%clk 0:00:53]}  Re2+ {[%clk 0:00:58]} 29. Kg3 {[%clk 0:00:52]}  Re3 {[%clk 0:00:53]} 30. Kf2 {[%clk 0:00:53]}  Rfe8 {[%clk 0:00:47]} 31. Nxg5 {[%clk 0:00:41]}  Re2+ {[%clk 0:00:46]} 32. Kg3 {[%clk 0:00:41]}  R8e3+ {[%clk 0:00:28]} 33. Nf3 {[%clk 0:00:38]}  Kc5 {[%clk 0:00:24]} 34. Kf4 {[%clk 0:00:32]}  Re4+ {[%clk 0:00:24]} 35. Kf5 {[%clk 0:00:32]}  d2 {[%clk 0:00:19]} 36. Rd3 {[%clk 0:00:31]}  R4e3 {[%clk 0:00:19]} 37. Rxd2 {[%clk 0:00:29]}  Rxf3+ {[%clk 0:00:18]} 38. gxf3 {[%clk 0:00:28]}  Rxd2 {[%clk 0:00:19]} 39. h4 {[%clk 0:00:27]}  Kd6 {[%clk 0:00:19]} 40. Kf6 {[%clk 0:00:24]}  Rf2 {[%clk 0:00:19]} 41. Kg7 {[%clk 0:00:24]}  Ke7 {[%clk 0:00:18]} 42. Kxh7 {[%clk 0:00:24]}  Rg2 {[%clk 0:00:17]} 43. h5 {[%clk 0:00:23]}  Kf7 {[%clk 0:00:16]} 44. h6 {[%clk 0:00:24]}  Rxb2 {[%clk 0:00:14]} 45. f4 {[%clk 0:00:23]}  Rxa2 {[%clk 0:00:13]} 46. f5 {[%clk 0:00:24]}  Ra6 {[%clk 0:00:12]} 47. f6 {[%clk 0:00:21]}  Rxf6 {[%clk 0:00:11]} 48. Kh8 {[%clk 0:00:21]}  Rxh6# {[%clk 0:00:11]} 0-1


[Site "https://www.chess.com"]